bitfinex-derivatives/quotes_SOLF0:USTF0_20250624
["timestamp","ask_amount","ask_price","bid_price","bid_amount"]
[1750802675020,3.42893008,144.88,144.86,6.9]
[1750802675215,3.42893008,144.88,144.81,3.42893008]
[1750802675216,35.58,144.87,144.81,6.39634422]
[1750802675521,10.32943008,144.86,144.83,6.9013]
[1750802677017,6.9006,144.85,144.83,6.9013]
[1750802684728,10.32933008,144.86,144.83,6.9013]
[1750802684927,3.42893008,144.86,144.83,6.9013]
[1750802686128,6.9007,144.85,144.83,6.9013]
[1750802686329,3.42893008,144.86,144.83,6.9013]
[1750802686833,10.32933008,144.86,144.84,6.9009]
[1750802687034,35.58,144.87,144.81,6.39634422]
[1750802687235,42.4797,144.87,144.84,6.9006]
[1750802687532,42.4797,144.87,144.82,6.39634422]
[1750802688324,42.4797,144.87,144.85,6.9004]
[1750802688724,35.58,144.87,144.83,9.8266001]
[1750802688925,6.8989,144.89,144.84,6.39634422]
[1750802689436,6.8989,144.89,144.87,6.8996]
[1750802689735,42.3785,144.9,144.87,6.8996]
[1750802691840,6.8988,144.89,144.87,6.8996]
[1750802692940,6.8988,144.89,144.86,13.29624422]
[1750802693634,6.8988,144.89,144.87,6.39634422]
[1750802694541,6.8992,144.88,144.87,6.39634422]
[1750802694737,3.43025588,144.89,144.86,6.39634422]
[1750802694934,3.43025588,144.87,144.86,6.39634422]
[1750802695134,6.9001,144.86,144.85,6.39634422]
[1750802695641,6.9001,144.86,144.84,8.47946844]
[1750802697144,6.9006,144.85,144.84,8.47946844]
[1750802698139,6.9006,144.85,144.84,6.4247318]
[1750802698537,35.48,144.86,144.83,8.47946844]
[1750802698843,6.9011,144.84,144.83,6.42835702]
[1750802700641,10.33115588,144.85,144.83,6.42835702]
[1750802701440,35.48,144.86,144.84,8.47946844]
[1750802702242,35.48,144.86,144.85,6.9006]
[1750802702432,35.48,144.86,144.84,8.47946844]
[1750802704246,42.3802,144.86,144.84,15.38026844]
[1750802705746,6.9006,144.85,144.84,8.47946844]
[1750802707941,6.9006,144.85,144.84,6.43612913]
[1750802708140,38.91025588,144.86,144.83,6.43612913]
[1750802708341,3.43025588,144.84,144.83,6.43612913]
[1750802708741,10.33135588,144.84,144.83,6.43612913]
[1750802709646,10.33135588,144.84,144.82,6.43612913]
[1750802710540,6.9007,144.85,144.83,6.43612913]
[1750802710741,35.48,144.86,144.83,6.43612913]
[1750802710936,35.48,144.86,144.85,6.43612913]
[1750802712338,35.48,144.86,144.84,8.47946844]
[1750802712543,35.48,144.86,144.85,6.43164902]
[1750802713248,35.48,144.86,144.85,13.33224902]
[1750802713449,35.48,144.86,144.84,8.47946844]
[1750802713650,35.48,144.86,144.84,15.38036844]
[1750802714943,35.48,144.86,144.84,8.47946844]
[1750802715744,6.9006,144.85,144.84,8.47946844]
[1750802716144,6.9006,144.85,144.83,15.38086844]
[1750802719944,35.48,144.86,144.83,8.47946844]
[1750802720148,35.48,144.86,144.84,8.47946844]
[1750802720655,42.3804,144.86,144.84,8.47946844]
[1750802721259,6.9006,144.85,144.84,8.47946844]
[1750802721457,6.9006,144.85,144.83,8.47946844]
[1750802723358,6.9011,144.84,144.83,8.47946844]
[1750802723955,6.9011,144.84,144.82,15.38126844]
[1750802724359,6.9016,144.83,144.81,8.47946844]
[1750802724558,6.9016,144.83,144.82,6.4366507]
[1750802725358,10.33185588,144.83,144.82,6.4366507]
[1750802729156,10.33185588,144.83,144.81,6.4366507]
[1750802729157,6.902,144.82,144.81,6.4366507]
[1750802729357,35.38,144.82,144.8,6.4366507]
[1750802729557,3.43025588,144.81,144.78,6.4366507]
[1750802729757,3.43025588,144.79,144.77,8.7688507]
[1750802729964,10.33405588,144.79,144.77,8.7688507]
[1750802730256,10.33405588,144.79,144.77,6.4366507]
[1750802731159,3.43025588,144.79,144.76,6.4366507]
[1750802731363,3.43025588,144.77,144.74,6.4366507]
[1750802731561,3.43025588,144.75,144.73,6.4366507]
[1750802731758,6.9058,144.74,144.73,6.4366507]
[1750802732158,3.43025588,144.75,144.72,6.4366507]
[1750802732359,35.38,144.77,144.71,8.6779507]
[1750802732753,3.43683496,144.76,144.73,6.9061]
[1750802732952,3.43683496,144.76,144.72,6.4366507]
[1750802733264,10.34303496,144.74,144.71,8.6779507]
[1750802734261,10.34303496,144.74,144.71,2.2413]
[1750802734970,35.38,144.77,144.71,8.6779507]
[1750802735168,35.38,144.77,144.72,8.7161507]
[1750802735363,6.905,144.76,144.72,2.2795]
[1750802735564,6.905,144.76,144.72,8.7161507]
[1750802736069,35.38,144.77,144.72,8.7161507]
[1750802736262,35.38,144.77,144.73,6.4366507]
[1750802736564,10.34023496,144.8,144.76,6.9049]
[1750802736769,35.38,144.8,144.74,6.4366507]
[1750802737657,599.69683496,144.83,144.75,9.87348566]
[1750802737861,599.69683496,144.83,144.73,2.2158]
[1750802737862,35.38,144.83,144.77,3.43683496]
[1750802738167,35.38,144.83,144.78,4.585]
[1750802738366,35.38,144.83,144.78,11.0216507]
[1750802738558,43.1204,144.86,144.83,6.9013]
[1750802738758,36.22,144.86,144.81,9.87348566]
[1750802739360,36.22,144.86,144.84,6.9008]
[1750802740169,43.1201,144.86,144.84,6.9008]
[1750802740472,36.22,144.86,144.83,6.40582363]
[1750802741664,10.33633496,144.88,144.85,6.9003]
[1750802742766,43.0989,144.89,144.86,6.9]
[1750802743071,36.2,144.89,144.84,6.40582363]
[1750802743368,36.2,144.89,144.85,8.63342363]
[1750802744168,36.2,144.89,144.87,6.8993]
[1750802746171,36.2,144.89,144.88,6.8992]
[1750802746471,36.2,144.89,144.86,6.40582363]
[1750802747162,36.2,144.89,144.87,6.8994]
[1750802747367,6.8985,144.9,144.87,6.8994]
[1750802748575,36.2,144.91,144.86,6.40582363]
[1750802748576,36.2,144.91,144.88,6.40582363]
[1750802749164,36.2,144.91,144.86,8.63342363]
[1750802749566,3.43683496,144.9,144.86,6.40582363]
[1750802749764,3.43683496,144.9,144.85,8.63342363]
[1750802749972,36.2,144.91,144.89,6.8985]
[1750802753880,36.2,144.91,144.9,6.8982]
[1750802754578,6.8969,144.93,144.91,6.8977]
[1750802755174,632.44,144.97,144.89,6.40582363]
[1750802755473,632.44,144.97,144.9,6.40582363]
[1750802755474,3.43683496,144.95,144.9,6.40582363]
[1750802755669,3.43683496,144.94,144.89,6.40582363]
[1750802755868,3.43683496,144.94,144.87,8.54109817]
[1750802755869,3.43683496,144.94,144.88,6.40582363]
[1750802756377,3.43683496,144.92,144.87,6.40582363]
[1750802756679,6.8999,144.87,144.85,13.30622363]
[1750802756879,39.61683496,144.88,144.83,6.40582363]
[1750802757180,36.18,144.88,144.84,6.40582363]
[1750802757380,36.18,144.88,144.84,6.38164568]
[1750802759377,36.18,144.88,144.87,6.8997]
[1750802760082,36.18,144.88,144.84,6.38164568]
[1750802760272,36.18,144.92,144.84,9.81848064]
[1750802760476,36.18,144.92,144.86,6.38164568]
[1750802760685,3.43683496,144.89,144.83,42.56164568]
[1750802760887,3.43683496,144.89,144.83,6.38164568]
[1750802761386,6.9,144.87,144.84,6.9007]
[1750802761585,36.18,144.87,144.82,6.38164568]
[1750802761777,39.61683496,144.87,144.82,6.38164568]
[1750802761980,39.61683496,144.87,144.81,2.3538]
[1750802762382,6.9009,144.85,144.82,6.9017]
[1750802762581,39.61683496,144.87,144.81,8.73544568]
[1750802763981,46.51673496,144.87,144.84,6.901]
[1750802764182,36.18,144.87,144.82,6.38164568]
[1750802764582,4.32354002,144.94,144.82,9.81848064]
[1750802764780,3.43683496,144.92,144.84,9.81848064]
[1750802764982,6.8976,144.92,144.89,6.8982]
[1750802765177,3.43683496,144.92,144.84,42.56164568]
[1750802765582,6.8984,144.9,144.84,45.99848064]
[1750802766083,6.8984,144.9,144.87,6.8993]
[1750802766486,6.898,144.91,144.84,45.99848064]
[1750802766681,3.43683496,144.92,144.84,45.99848064]
[1750802767185,10.33443496,144.92,144.89,6.8984]
[1750802768588,6.8978,144.91,144.89,6.8984]
[1750802769187,6.8978,144.91,144.88,6.899]
[1750802770191,6.8978,144.91,144.89,6.8987]
[1750802770788,3.43683496,144.92,144.84,45.99848064]
[1750802770789,10.33433496,144.92,144.9,6.8982]
[1750802771195,10.33433496,144.92,144.85,6.38164568]
[1750802771583,10.33433496,144.92,144.89,6.8984]
[1750802771785,6.897,144.93,144.86,3.43683496]
[1750802771992,36.5,144.94,144.93,6.8968]
[1750802772192,24.12143496,145.04,144.9,3.43683496]
[1750802772193,636.19683496,144.97,144.9,3.43683496]
[1750802772386,3.43683496,144.95,144.88,39.93683496]
[1750802772580,3.43683496,144.95,144.91,6.8973]
[1750802772789,3.43683496,144.95,144.88,46.31848064]
[1750802772992,10.33293496,144.95,144.88,46.31848064]
[1750802773190,6.8961,144.95,144.93,6.8967]
[1750802773492,10.33243496,144.96,144.88,46.31848064]
[1750802773701,10.33243496,144.96,144.89,6.38164568]
[1750802773990,10.33243496,144.96,144.93,6.8964]
[1750802774587,3.43683496,144.96,144.88,46.31848064]
[1750802774783,632.76,144.97,144.88,39.93683496]
[1750802774992,632.76,144.97,144.88,46.31848064]
[1750802774993,3.43683496,144.95,144.88,46.31848064]
[1750802775193,6.8968,144.93,144.91,6.8975]
[1750802775584,6.8968,144.93,144.88,42.88164568]
[1750802775790,6.8968,144.93,144.91,6.8976]
[1750802776887,6.8966,144.94,144.91,6.8976]
[1750802777083,636.19683496,144.97,144.89,6.38164568]
[1750802777487,6.8958,144.96,144.89,6.38164568]
[1750802777694,6.8958,144.96,144.9,3.43683496]
[1750802777890,6.8958,144.96,144.9,6.38164568]
[1750802778195,636.19683496,144.97,144.93,6.8965]
[1750802778789,3.43683496,144.95,144.88,42.88164568]
[1750802778996,3.43683496,144.95,144.88,36.5]
[1750802779196,3.43683496,144.93,144.87,10.78644568]
[1750802779397,36.5,144.92,144.87,8.59034568]
[1750802779600,36.5,144.91,144.87,2.2087]
[1750802779799,43.3978,144.91,144.88,6.8989]
[1750802780189,6.8987,144.89,144.87,15.48974568]
[1750802780394,3.43683496,144.9,144.87,6.8994]
[1750802780593,3.43683496,144.9,144.86,6.38164568]
[1750802780790,36.5,144.91,144.85,6.38164568]
[1750802781004,36.5,144.91,144.83,47.42209817]
[1750802781005,3.43683496,144.86,144.83,6.38164568]
[1750802781299,10.33823496,144.84,144.82,6.38164568]
[1750802781501,10.33823496,144.84,144.79,2.2271]
[1750802781502,39.93683496,144.85,144.81,6.38164568]
[1750802781999,6.9014,144.84,144.81,6.38164568]
[1750802782396,36.5,144.85,144.82,6.38164568]
[1750802782597,36.5,144.88,144.83,6.38164568]
[1750802782898,6.9,144.87,144.84,6.9007]
[1750802783289,42.21904324,144.88,144.83,6.38164568]
[1750802784003,6.9011,144.84,144.83,6.38164568]
[1750802784205,43.4011,144.84,144.81,6.38164568]
[1750802784600,42.21904324,144.84,144.81,6.38164568]
[1750802784898,42.21904324,144.84,144.78,8.54109817]
[1750802785093,42.21904324,144.84,144.77,8.54109817]
[1750802785094,6.9026,144.81,144.77,8.54109817]
[1750802785295,42.21904324,144.84,144.77,8.54109817]
[1750802785495,36.5,144.84,144.76,8.54109817]
[1750802785696,36.5,144.84,144.79,8.54109817]
[1750802786297,36.5,144.84,144.8,2.2696]
[1750802786794,36.5,144.84,144.82,6.9019]
[1750802788104,36.5,144.84,144.83,6.9016]
[1750802788403,36.5,144.89,144.81,14.26014141]
[1750802788600,6.8996,144.88,144.81,16.45494141]
[1750802789297,36.5,144.89,144.81,16.45494141]
[1750802789601,36.5,144.89,144.83,8.54109817]
[1750802789802,36.5,144.89,144.87,6.8994]
[1750802790306,36.5,144.89,144.83,8.54109817]
[1750802790703,43.399,144.89,144.83,8.54109817]
[1750802791294,6.8993,144.88,144.83,8.54109817]
[1750802791498,36.5,144.89,144.83,8.54109817]
[1750802791699,6.8994,144.88,144.85,6.9004]
[1750802792203,6.8997,144.87,144.84,6.9007]
[1750802792406,42.21904324,144.89,144.82,8.54109817]
[1750802792906,6.8999,144.87,144.84,6.9008]
[1750802793501,42.21904324,144.89,144.82,8.54109817]
[1750802793696,36.5,144.89,144.83,8.54109817]
[1750802793898,43.399,144.89,144.87,6.8996]
[1750802794106,36.5,144.89,144.87,6.8996]
[1750802794502,36.5,144.89,144.88,6.8992]
[1750802794707,36.5,144.92,144.85,14.26014141]
[1750802794906,36.5,144.92,144.87,8.54109817]
[1750802795207,36.5,144.92,144.9,6.8979]
[1750802795701,36.5,144.92,144.87,8.54109817]
[1750802795901,632.6,144.95,144.87,14.26014141]
[1750802796100,6.8966,144.94,144.91,6.8975]
[1750802796302,36.5,144.95,144.88,10.73699817]
[1750802796703,36.5,144.95,144.92,6.8972]
[1750802796902,36.5,144.95,144.88,10.73699817]
[1750802797408,6.8963,144.94,144.91,6.8975]
[1750802798009,6.8963,144.94,144.92,6.8973]
[1750802798211,36.5,144.95,144.89,8.54109817]
[1750802798604,6.8964,144.94,144.89,8.54109817]
[1750802798810,36.5,144.95,144.89,8.54109817]
[1750802799203,43.3961,144.95,144.92,6.8969]
[1750802799513,43.3961,144.95,144.88,10.73699817]
[1750802799514,36.5,144.95,144.88,10.73699817]
[1750802799810,6.8966,144.94,144.88,10.73699817]
[1750802800810,6.8966,144.94,144.91,6.8974]
[1750802801211,6.8966,144.94,144.89,8.54109817]
[1750802801914,36.5,144.95,144.91,6.8975]
[1750802802514,6.8965,144.94,144.92,6.8972]
[1750802803204,43.3961,144.95,144.93,6.8967]
[1750802803401,43.3961,144.95,144.88,10.73699817]
[1750802803605,43.3961,144.95,144.92,6.8968]
[1750802803815,36.5,144.95,144.89,14.26014141]
[1750802804217,36.5,144.95,144.93,6.8964]
[1750802805031,36.5,144.95,144.94,6.8963]
[1750802805218,43.3959,144.95,144.9,8.54109817]
[1750802805414,43.3959,144.95,144.91,6.8975]
[1750802805415,36.5,144.95,144.91,6.8975]
[1750802805620,5.71904324,144.94,144.87,8.54109817]
[1750802805921,6.8969,144.93,144.86,13.31239817]
[1750802806121,6.8969,144.93,144.9,6.8979]
[1750802806319,6.8973,144.92,144.9,6.8979]
[1750802806922,6.8973,144.92,144.87,8.54109817]
[1750802807919,6.8973,144.92,144.89,6.8984]
[1750802808122,5.71904324,144.9,144.85,8.54109817]
[1750802808422,37.92,144.91,144.8,68.62396393]
[1750802808423,37.92,144.89,144.84,8.54109817]
[1750802809014,37.92,144.89,144.82,18.35823155]
[1750802809015,44.8189,144.89,144.86,6.8998]
[1750802809415,37.92,144.89,144.86,6.8998]
[1750802809621,37.92,144.89,144.83,8.54109817]
[1750802810825,6.8993,144.88,144.85,6.9003]
[1750802811025,37.92,144.89,144.85,6.9003]
[1750802811225,43.63904324,144.89,144.82,8.54109817]
[1750802811427,43.63904324,144.89,144.81,8.54109817]
[1750802811628,43.63904324,144.89,144.82,8.54109817]
[1750802812324,43.63904324,144.89,144.81,8.54109817]
[1750802812519,6.8997,144.87,144.84,6.9008]
[1750802813033,6.8997,144.87,144.85,6.9005]
[1750802815929,50.53794324,144.89,144.86,6.8998]
[1750802816125,37.92,144.89,144.86,6.8998]
[1750802816330,37.92,144.89,144.83,11.96942404]
[1750802816630,44.8187,144.89,144.87,6.8994]
[1750802816828,37.92,144.89,144.83,11.96942404]
[1750802817929,37.92,144.89,144.88,6.8992]
[1750802818719,37.94,144.92,144.87,3.42832587]
[1750802818929,37.94,144.94,144.88,8.54109817]
[1750802819119,6.8971,144.93,144.91,6.8977]
[1750802819526,6.8956,144.96,144.89,3.42832587]
[1750802819829,37.94,144.97,144.89,11.96942404]
[1750802820028,6.8954,144.96,144.89,11.96942404]
[1750802820226,37.94,144.97,144.91,3.42832587]
[1750802820734,37.94,144.97,144.95,6.8955]
[1750802821033,37.94,144.97,144.92,8.18282587]
[1750802821230,37.94,144.97,144.95,6.8956]
[1750802822624,37.94,144.97,144.96,6.8954]
[1750802822824,6.8947,144.98,144.96,6.8954]
[1750802823025,6.8947,144.98,144.92,6.9824]
[1750802823336,6.8947,144.98,144.95,6.8956]
[1750802823530,6.8947,144.98,144.92,6.9824]
[1750802823934,6.8947,144.98,144.95,6.8956]
[1750802824136,639.66737446,145.0,144.92,6.9824]
[1750802824333,5.70737446,144.98,144.92,4.7545]
[1750802825038,5.70737446,144.98,144.92,9.285]
[1750802825239,6.8961,144.95,144.92,9.285]
[1750802825530,6.8961,144.95,144.92,6.897]
[1750802825736,44.8356,144.96,144.93,6.8967]
[1750802826128,37.94,144.96,144.89,16.46357263]
[1750802826545,6.8962,144.95,144.89,16.46357263]
[1750802826837,37.94,144.96,144.89,16.46357263]
[1750802827040,44.8358,144.96,144.93,6.8965]
[1750802827238,37.94,144.96,144.91,5.70737446]
[1750802827425,601.72737446,145.0,144.91,5.70737446]
[1750802827633,37.92,144.99,144.95,6.8958]
[1750802827838,37.92,144.99,144.91,5.70737446]
[1750802828734,6.8948,144.98,144.95,6.8955]
[1750802829640,37.92,144.99,144.9,14.24847263]
[1750802830838,6.8957,144.96,144.93,6.8965]
[1750802831036,5.70737446,144.98,144.9,8.54109817]
[1750802831443,5.70737446,144.98,144.93,6.8965]
[1750802831641,5.70737446,144.98,144.9,8.54109817]
[1750802831939,5.70737446,144.98,144.89,10.75619817]
[1750802832436,6.8962,144.95,144.92,6.8972]
[1750802832842,6.8962,144.95,144.9,8.54109817]
[1750802833643,6.8962,144.95,144.92,6.897]
[1750802833845,37.92,144.99,144.9,14.24847263]
[1750802834142,5.70737446,144.98,144.91,8.54109817]
[1750802834445,6.8962,144.95,144.91,8.54109817]
[1750802834637,6.8962,144.95,144.9,8.54109817]
[1750802834843,6.8956,144.96,144.93,6.8965]
[1750802835640,5.70737446,144.98,144.93,6.8965]
[1750802836247,6.8957,144.96,144.93,6.8965]
[1750802836443,5.70737446,144.96,144.9,8.54109817]
[1750802836748,6.8958,144.96,144.91,8.54109817]
[1750802836950,5.70737446,144.98,144.9,8.54109817]
[1750802837147,37.92,144.99,144.9,14.24847263]
[1750802837459,6.8949,144.97,144.92,8.54109817]
[1750802837753,37.92,144.99,144.92,8.54109817]
[1750802838343,6.8951,144.97,144.92,8.54109817]
[1750802838542,37.92,144.99,144.92,8.54109817]
[1750802839253,37.92,144.99,144.94,6.8958]
[1750802839449,6.8949,144.97,144.94,6.8958]
[1750802839749,6.8949,144.97,144.91,8.54109817]
[1750802840250,6.8949,144.97,144.92,8.54109817]
[1750802841040,6.8956,144.96,144.94,6.896]
[1750802841352,37.92,144.99,144.91,8.54109817]
[1750802841942,42.26915783,144.99,144.91,8.54109817]
[1750802842141,5.70737446,144.96,144.9,8.54109817]
[1750802842341,37.74,144.95,144.89,10.75619817]
[1750802842739,5.70737446,144.94,144.88,10.93619817]
[1750802843356,5.70737446,144.94,144.88,2.3951]
[1750802843659,5.70737446,144.92,144.85,8.54109817]
[1750802843947,37.74,144.91,144.85,8.54109817]
[1750802844346,37.74,144.91,144.84,8.54109817]
[1750802844745,6.8987,144.89,144.86,13.31770303]
[1750802845341,37.74,144.91,144.85,6.41790303]
[1750802845654,37.74,144.91,144.87,6.41790303]
[1750802846442,37.74,144.91,144.89,6.8983]
[1750802846648,37.74,144.91,144.88,6.41790303]
[1750802847454,37.74,144.91,144.89,6.8984]
[1750802848548,37.74,144.91,144.9,6.8982]
[1750802848748,139.02,144.95,144.88,6.41790303]
[1750802848749,37.74,144.94,144.88,6.41790303]
[1750802849046,37.74,144.94,144.89,6.41790303]
[1750802849252,37.74,144.94,144.9,6.41790303]
[1750802849853,37.74,144.94,144.92,6.8969]
[1750802850354,44.6365,144.94,144.92,6.8969]
[1750802850554,37.74,144.94,144.91,6.8977]
[1750802852753,6.897,144.93,144.91,6.8977]
[1750802853866,44.6365,144.94,144.91,6.8977]
[1750802854160,37.74,144.94,144.91,6.8977]
[1750802855153,6.8971,144.93,144.91,6.8977]
[1750802860265,48.06359473,144.94,144.91,6.8977]
[1750802861659,48.06359473,144.94,144.91,13.31560303]
[1750802862263,6.8969,144.93,144.91,13.31560303]
[1750802862462,41.16709473,144.94,144.91,13.31560303]
[1750802862958,37.74,144.94,144.91,6.41790303]
[1750802863167,37.74,144.94,144.92,6.41790303]
[1750802863665,37.48,144.97,144.92,3.42709473]
[1750802863857,37.48,145.01,144.96,6.42477138]
[1750802864060,40.90709473,145.01,144.96,6.42477138]
[1750802864362,45.23405986,145.01,144.96,6.42477138]
[1750802864565,6.8942,144.99,144.96,13.31987138]
[1750802864865,45.23403443,145.01,144.96,6.42477138]
[1750802865161,40.90709473,145.01,144.96,6.42477138]
[1750802865352,6.8942,144.99,144.96,13.32007138]
[1750802866557,6.8937,145.0,144.97,6.8949]
[1750802866771,40.90709473,145.01,144.97,6.8949]
[1750802867260,40.90709473,145.01,144.97,6.42477138]
[1750802867965,6.8936,145.0,144.97,6.42477138]
[1750802868359,37.48,145.01,144.97,6.42477138]
[1750802869467,595.86,145.07,145.01,6.8927]
[1750802869468,44.3718,145.04,145.01,6.8927]
[1750802869764,37.48,145.04,145.0,6.42477138]
[1750802869968,6.8921,145.03,144.99,13.31827138]
[1750802870164,6.8921,145.03,145.0,6.42477138]
[1750802870965,6.8921,145.03,145.0,13.31817138]
[1750802871163,6.8926,145.02,144.99,6.42477138]
[1750802871369,6.8926,145.02,144.99,13.29751957]
[1750802871667,6.8924,145.03,145.0,6.40391957]
[1750802871872,6.8924,145.03,145.0,13.29711957]
[1750802872371,6.8924,145.03,145.0,6.40391957]
[1750802872573,6.8924,145.03,145.0,6.8934]
[1750802872768,6.8924,145.03,145.0,13.29731957]
[1750802872967,6.8924,145.03,145.0,6.40391957]
[1750802873167,37.48,145.04,145.0,6.40391957]
[1750802873363,40.90709473,145.04,145.0,6.40391957]
[1750802873568,6.8924,145.03,145.0,13.29711957]
[1750802873771,6.8924,145.03,145.0,6.40391957]
[1750802874173,6.8924,145.03,145.0,6.8931]
[1750802875774,44.3717,145.04,145.01,6.8929]
[1750802875970,37.48,145.04,145.01,6.8929]
[1750802876165,6.8923,145.03,145.0,6.8933]
[1750802876375,6.8923,145.03,144.99,6.40391957]
[1750802876777,6.8923,145.03,145.0,6.8931]
[1750802877272,37.48,145.04,144.99,6.40391957]
[1750802877774,37.48,145.04,145.0,6.8932]
[1750802877971,6.8923,145.03,145.0,6.8932]
[1750802878173,40.90709473,145.04,145.0,6.8932]
[1750802878467,6.8923,145.03,145.0,6.8932]
[1750802878972,6.8929,145.02,144.99,6.8936]
[1750802879170,3.42709473,145.02,144.97,6.40391957]
[1750802879369,3.42709473,145.02,144.96,2.2507]
[1750802879370,3.42709473,145.02,144.96,8.65461957]
[1750802880476,3.42709473,145.02,144.97,6.40391957]
[1750802880664,37.48,145.04,144.96,8.65461957]
[1750802880868,3.42709473,145.03,144.96,8.65461957]
[1750802881073,3.42709473,145.01,144.96,2.2507]
[1750802881569,3.42709473,145.03,144.95,14.5222143]
[1750802881875,37.48,145.04,144.99,6.8935]
[1750802881876,6.8925,145.02,144.99,6.8935]
[1750802882176,40.90709473,145.04,144.97,6.40391957]
[1750802882371,40.90709473,145.04,144.96,9.8310143]
[1750802882676,6.8926,145.02,144.99,6.8939]
[1750802882974,6.8926,145.02,144.97,6.40391957]
[1750802883976,6.8922,145.03,145.0,6.8931]
[1750802884378,40.90709473,145.04,144.97,6.40391957]
[1750802884578,6.8924,145.03,145.0,6.8932]
[1750802885280,47.79889473,145.04,145.01,6.893]
[1750802885474,47.79889473,145.04,144.97,6.40391957]
[1750802885869,47.79889473,145.04,145.01,6.8926]
[1750802886480,40.90709473,145.04,145.0,6.8932]
[1750802886880,3.42709473,145.02,144.99,6.8936]
[1750802887472,3.42709473,145.02,144.96,6.40391957]
[1750802887680,3.42709473,145.02,144.95,13.50851957]
[1750802887879,6.8935,145.0,144.95,13.50851957]
[1750802889283,6.8935,145.0,144.98,6.8941]
[1750802889783,6.8935,145.0,144.97,6.8947]
[1750802889987,44.4335,145.0,144.97,6.8947]
[1750802890680,47.86059473,145.0,144.97,6.8947]
[1750802892379,3.42709473,144.98,144.93,6.40391957]
[1750802892575,3.42709473,144.96,144.93,6.40391957]
[1750802892780,10.32279473,144.96,144.93,13.30041957]
[1750802893181,10.32279473,144.96,144.93,6.8965]
[1750802893386,6.8959,144.95,144.93,6.8965]
[1750802893687,3.42709473,144.94,144.91,6.40391957]
[1750802894788,3.42709473,144.94,144.92,6.897]
[1750802896887,3.42709473,144.94,144.91,6.40391957]
[1750802897493,40.96709473,144.96,144.91,6.40391957]
[1750802897683,40.96709473,144.96,144.92,6.40391957]
[1750802898080,40.96709473,144.96,144.94,6.896]
[1750802900297,1.4751,145.03,144.93,9.8310143]
[1750802900496,3.42709473,145.01,144.95,6.40391957]
[1750802900995,6.894,144.99,144.97,6.8946]
[1750802902699,6.8937,145.0,144.97,6.8946]
[1750802903889,10.32029473,145.01,144.98,6.8943]
[1750802905101,37.54,145.02,144.97,6.40391957]
[1750802905404,37.54,145.02,144.98,6.40391957]
[1750802905707,44.4325,145.02,144.99,6.8938]
[1750802908799,37.54,145.02,144.99,6.40391957]
[1750802909008,37.54,145.02,145.0,6.40391957]
[1750802909403,37.54,145.02,145.01,6.893]
[1750802909811,37.54,145.02,145.01,13.29691957]
[1750802910111,37.54,145.02,145.01,6.40391957]
[1750802910805,37.54,145.02,145.0,13.29711957]
[1750802911214,37.54,145.02,145.01,6.893]
[1750802911413,37.54,145.02,145.0,6.40391957]
[1750802911705,37.54,145.02,145.0,13.29711957]
[1750802913306,3.42709473,145.04,145.01,6.8928]
[1750802913518,37.54,145.05,145.01,6.40391957]
[1750802913807,37.54,145.05,145.03,6.40391957]
[1750802914010,37.54,145.05,145.04,6.8916]
[1750802914513,37.54,145.05,145.03,6.40391957]
[1750802915108,37.54,145.05,145.04,6.8916]
[1750802915714,606.17749473,145.07,145.04,6.8916]
[1750802916009,6.8906,145.06,145.04,6.8916]
[1750802916314,6.8906,145.06,145.03,13.29571957]
[1750802916912,6.8906,145.06,145.04,6.8914]
[1750802917701,6.8904,145.07,145.05,6.891]
[1750802917907,37.54,145.08,145.05,6.891]
[1750802919017,44.43,145.08,145.05,6.891]
[1750802919313,44.43,145.08,145.06,6.8906]
[1750802919710,44.43,145.08,145.03,9.8310143]
[1750802920014,37.54,145.08,145.03,6.40391957]
[1750802920409,37.54,145.08,145.04,6.8911]
[1750802920410,6.8904,145.07,145.04,6.8911]
[1750802920617,37.54,145.08,145.04,6.40391957]